[Event "Titled Tuesday Blitz July 13 2021"]
[White "Pridorozhni, Aleksei"]
[Black "Zubritskiy, Artyom"]
[WhiteFideId "4127870"]
[BlackFideId "4181247"]
[WhiteElo "2565"]
[BlackElo "2559"]
[Result "1-0"]
[Round "06"]
[TimeControl "180+1"]
[Date "2021.07.13"]
[WhiteClock "0:01:09"]
[BlackClock "0:00:01"]

1. e4 {[%clk 0:03:00]}  c5 {[%clk 0:02:58]} 2. Nc3 {[%clk 0:03:00]}  d6 {[%clk 0:02:58]} 3. f4 {[%clk 0:02:58]}  g6 {[%clk 0:02:58]} 4. d4 {[%clk 0:02:58]}  cxd4 {[%clk 0:02:57]} 5. Qxd4 {[%clk 0:02:59]}  Nf6 {[%clk 0:02:47]} 6. Bd3 {[%clk 0:02:58]}  Nc6 {[%clk 0:02:46]} 7. Qf2 {[%clk 0:02:57]}  Bg7 {[%clk 0:02:45]} 8. Nf3 {[%clk 0:02:57]}  O-O {[%clk 0:02:06]} 9. h3 {[%clk 0:02:56]}  Rb8 {[%clk 0:01:50]} 10. O-O {[%clk 0:02:48]}  Nd7 {[%clk 0:01:42]} 11. Be3 {[%clk 0:02:44]}  a6 {[%clk 0:01:41]} 12. Rae1 {[%clk 0:02:41]}  b5 {[%clk 0:01:41]} 13. g4 {[%clk 0:02:38]}  b4 {[%clk 0:01:37]} 14. Nd1 {[%clk 0:02:38]}  Bb7 {[%clk 0:01:36]} 15. h4 {[%clk 0:02:34]}  Qa5 {[%clk 0:01:33]} 16. b3 {[%clk 0:02:30]}  Nc5 {[%clk 0:01:29]} 17. h5 {[%clk 0:02:23]}  Qxa2 {[%clk 0:01:07]} 18. Bxc5 {[%clk 0:02:23]}  dxc5 {[%clk 0:01:07]} 19. e5 {[%clk 0:02:23]}  Nd4 {[%clk 0:01:03]} 20. Nxd4 {[%clk 0:02:19]}  cxd4 {[%clk 0:01:03]} 21. e6 {[%clk 0:02:16]}  f5 {[%clk 0:01:00]} 22. hxg6 {[%clk 0:02:13]}  hxg6 {[%clk 0:00:57]} 23. Qh4 {[%clk 0:02:05]}  Qa5 {[%clk 0:00:44]} 24. Re2 {[%clk 0:02:04]}  Qd5 {[%clk 0:00:23]} 25. Rh2 {[%clk 0:02:04]}  Rf6 {[%clk 0:00:13]} 26. Bc4 {[%clk 0:01:55]}  Qd6 {[%clk 0:00:12]} 27. g5 {[%clk 0:01:41]}  Rxe6 {[%clk 0:00:12]} 28. Qh7+ {[%clk 0:01:35]}  Kf7 {[%clk 0:00:12]} 29. Bxe6+ {[%clk 0:01:23]}  Qxe6 {[%clk 0:00:13]} 30. Qh4 {[%clk 0:01:23]}  Qd5 {[%clk 0:00:09]} 31. Qg3 {[%clk 0:01:19]}  Rc8 {[%clk 0:00:08]} 32. Re1 {[%clk 0:01:18]}  e6 {[%clk 0:00:05]} 33. Nb2 {[%clk 0:01:16]}  d3 {[%clk 0:00:02]} 34. Nxd3 {[%clk 0:01:15]}  Bd4+ {[%clk 0:00:02]} 35. Kf1 {[%clk 0:01:16]}  Kg8 {[%clk 0:00:02]} 36. Qh3 {[%clk 0:01:14]}  Rc7 {[%clk 0:00:02]} 37. Ne5 {[%clk 0:01:10]}  Qb5+ {[%clk 0:00:01]} 38. Ree2 {[%clk 0:01:09]} 1-0


[Site "https://www.chess.com"]

[Event "Titled Tuesday Blitz July 13 2021"]
[White "Prraneeth Vuppala"]
[Black "Woodward, Andy"]
[WhiteFideId "46622373"]
[BlackFideId "30953499"]
[WhiteElo "1759"]
[BlackElo "2137"]
[Result "0-1"]
[Round "06"]
[TimeControl "180+1"]
[Date "2021.07.13"]
[WhiteClock "0:00:08"]
[BlackClock "0:00:46"]

1. e4 {[%clk 0:03:00]}  c5 {[%clk 0:02:59]} 2. Nf3 {[%clk 0:03:00]}  d6 {[%clk 0:02:59]} 3. d4 {[%clk 0:03:00]}  cxd4 {[%clk 0:02:59]} 4. Nxd4 {[%clk 0:03:01]}  Nf6 {[%clk 0:03:00]} 5. Nc3 {[%clk 0:03:02]}  a6 {[%clk 0:03:00]} 6. h3 {[%clk 0:03:02]}  g6 {[%clk 0:02:59]} 7. Be3 {[%clk 0:02:54]}  Bg7 {[%clk 0:02:59]} 8. g4 {[%clk 0:02:53]}  O-O {[%clk 0:02:59]} 9. Bg2 {[%clk 0:02:54]}  Nc6 {[%clk 0:02:59]} 10. O-O {[%clk 0:02:50]}  Nxd4 {[%clk 0:02:58]} 11. Bxd4 {[%clk 0:02:50]}  b5 {[%clk 0:02:59]} 12. e5 {[%clk 0:02:22]}  dxe5 {[%clk 0:02:59]} 13. Be3 {[%clk 0:01:57]}  Be6 {[%clk 0:02:56]} 14. Bxa8 {[%clk 0:01:54]}  Qxa8 {[%clk 0:02:57]} 15. Qe2 {[%clk 0:01:40]}  Bc4 {[%clk 0:02:57]} 16. Qd2 {[%clk 0:01:36]}  Rd8 {[%clk 0:02:56]} 17. Qe1 {[%clk 0:01:35]}  b4 {[%clk 0:02:47]} 18. Na4 {[%clk 0:01:26]}  Qf3 {[%clk 0:02:44]} 19. Kh2 {[%clk 0:01:24]}  Bxf1 {[%clk 0:01:49]} 20. Qxf1 {[%clk 0:01:25]}  Qc6 {[%clk 0:01:49]} 21. Nc5 {[%clk 0:01:17]}  Rd6 {[%clk 0:01:41]} 22. a3 {[%clk 0:01:08]}  Nd5 {[%clk 0:01:41]} 23. axb4 {[%clk 0:00:57]}  Nxb4 {[%clk 0:01:09]} 24. Qe2 {[%clk 0:00:30]}  e4 {[%clk 0:01:02]} 25. c3 {[%clk 0:00:28]}  Nd3 {[%clk 0:01:02]} 26. b4 {[%clk 0:00:24]}  Bxc3 {[%clk 0:00:58]} 27. Rxa6 {[%clk 0:00:23]}  Qd5 {[%clk 0:00:58]} 28. Ra5 {[%clk 0:00:19]}  Bxb4 {[%clk 0:00:55]} 29. Rb5 {[%clk 0:00:09]}  Bxc5 {[%clk 0:00:54]} 30. Bxc5 {[%clk 0:00:09]}  Nxc5 {[%clk 0:00:52]} 31. Qb2 {[%clk 0:00:09]}  Rd8 {[%clk 0:00:51]} 32. Qc3 {[%clk 0:00:09]}  Qd6+ {[%clk 0:00:51]} 33. Kg2 {[%clk 0:00:08]}  Nd3 {[%clk 0:00:52]} 34. Rb7 {[%clk 0:00:08]}  Nf4+ {[%clk 0:00:51]} 35. Kh1 {[%clk 0:00:07]}  Qd1+ {[%clk 0:00:50]} 36. Kh2 {[%clk 0:00:08]}  Ne2 {[%clk 0:00:46]} 0-1


[Site "https://www.chess.com"]

[Event "Titled Tuesday Blitz July 13 2021"]
[White "Przybylski, Wojciech"]
[Black "Baradaran, Arman"]
[WhiteFideId "1117599"]
[BlackFideId "880515"]
[WhiteElo "2317"]
[BlackElo "2132"]
[Result "1-0"]
[Round "06"]
[TimeControl "180+1"]
[Date "2021.07.13"]
[WhiteClock "0:00:13"]
[BlackClock "0:00:06"]

1. e4 {[%clk 0:03:00]}  e5 {[%clk 0:02:54]} 2. Nf3 {[%clk 0:02:59]}  Nc6 {[%clk 0:02:54]} 3. d4 {[%clk 0:02:57]}  exd4 {[%clk 0:02:54]} 4. Nxd4 {[%clk 0:02:57]}  Nf6 {[%clk 0:02:54]} 5. Nxc6 {[%clk 0:02:56]}  bxc6 {[%clk 0:02:55]} 6. e5 {[%clk 0:02:48]}  Qe7 {[%clk 0:02:54]} 7. Qe2 {[%clk 0:02:48]}  Nd5 {[%clk 0:02:55]} 8. h4 {[%clk 0:02:49]}  h6 {[%clk 0:02:53]} 9. c4 {[%clk 0:02:47]}  Ba6 {[%clk 0:02:53]} 10. b3 {[%clk 0:02:45]}  g6 {[%clk 0:02:52]} 11. f4 {[%clk 0:02:41]}  Bg7 {[%clk 0:02:47]} 12. Qf2 {[%clk 0:02:34]}  Nf6 {[%clk 0:02:00]} 13. Bb2 {[%clk 0:02:26]}  O-O {[%clk 0:01:25]} 14. Be2 {[%clk 0:02:17]}  Ne4 {[%clk 0:00:54]} 15. Qe3 {[%clk 0:02:16]}  d5 {[%clk 0:00:49]} 16. cxd5 {[%clk 0:02:09]}  Bxe2 {[%clk 0:00:46]} 17. Qxe4 {[%clk 0:02:08]}  Ba6 {[%clk 0:00:26]} 18. Ba3 {[%clk 0:01:59]}  Qd7 {[%clk 0:00:25]} 19. dxc6 {[%clk 0:01:53]}  Qg4 {[%clk 0:00:17]} 20. Nd2 {[%clk 0:01:38]}  Rfd8 {[%clk 0:00:12]} 21. Nc4 {[%clk 0:01:34]}  f5 {[%clk 0:00:03]} 22. Qf3 {[%clk 0:01:24]}  Qxf3 {[%clk 0:00:03]} 23. gxf3 {[%clk 0:01:24]}  Rd4 {[%clk 0:00:02]} 24. Kf2 {[%clk 0:01:12]}  Bxc4 {[%clk 0:00:02]} 25. bxc4 {[%clk 0:01:09]}  Rxf4 {[%clk 0:00:02]} 26. Rae1 {[%clk 0:01:03]}  Rxc4 {[%clk 0:00:03]} 27. e6 {[%clk 0:01:01]}  Rc2+ {[%clk 0:00:02]} 28. Kg3 {[%clk 0:01:01]}  Rxa2 {[%clk 0:00:03]} 29. Bc1 {[%clk 0:00:54]}  Re8 {[%clk 0:00:02]} 30. Bf4 {[%clk 0:00:53]}  Rc2 {[%clk 0:00:02]} 31. Rc1 {[%clk 0:00:49]}  Rxc1 {[%clk 0:00:02]} 32. Rxc1 {[%clk 0:00:49]}  Rxe6 {[%clk 0:00:03]} 33. Bxc7 {[%clk 0:00:49]}  Re8 {[%clk 0:00:01]} 34. Rd1 {[%clk 0:00:39]}  Rc8 {[%clk 0:00:01]} 35. Rd8+ {[%clk 0:00:34]}  Rxd8 {[%clk 0:00:01]} 36. Bxd8 {[%clk 0:00:34]}  Be5+ {[%clk 0:00:02]} 37. f4 {[%clk 0:00:33]}  Bd6 {[%clk 0:00:02]} 38. c7 {[%clk 0:00:33]}  Bxc7 {[%clk 0:00:03]} 39. Bxc7 {[%clk 0:00:34]}  Kf7 {[%clk 0:00:03]} 40. Kf3 {[%clk 0:00:34]}  a6 {[%clk 0:00:02]} 41. Ke3 {[%clk 0:00:27]}  g5 {[%clk 0:00:01]} 42. fxg5 {[%clk 0:00:26]}  hxg5 {[%clk 0:00:02]} 43. hxg5 {[%clk 0:00:26]}  Kg6 {[%clk 0:00:02]} 44. Kf4 {[%clk 0:00:26]}  Kf7 {[%clk 0:00:01]} 45. Kxf5 {[%clk 0:00:26]}  Kg7 {[%clk 0:00:02]} 46. Be5+ {[%clk 0:00:25]}  Kf7 {[%clk 0:00:02]} 47. Bc3 {[%clk 0:00:25]}  Kg8 {[%clk 0:00:03]} 48. g6 {[%clk 0:00:24]}  a5 {[%clk 0:00:03]} 49. Bxa5 {[%clk 0:00:23]}  Kf8 {[%clk 0:00:03]} 50. Bc3 {[%clk 0:00:22]}  Kg8 {[%clk 0:00:04]} 51. Kg5 {[%clk 0:00:23]}  Kf8 {[%clk 0:00:04]} 52. Kh6 {[%clk 0:00:23]}  Kg8 {[%clk 0:00:05]} 53. Bd4 {[%clk 0:00:23]}  Kf8 {[%clk 0:00:04]} 54. Kh7 {[%clk 0:00:23]}  Ke7 {[%clk 0:00:05]} 55. g7 {[%clk 0:00:23]}  Ke6 {[%clk 0:00:05]} 56. g8=Q+ {[%clk 0:00:23]}  Kf5 {[%clk 0:00:06]} 57. Qg6+ {[%clk 0:00:22]}  Kf4 {[%clk 0:00:07]} 58. Bh8 {[%clk 0:00:21]}  Kf3 {[%clk 0:00:06]} 59. Kh6 {[%clk 0:00:19]}  Kf4 {[%clk 0:00:06]} 60. Kh5 {[%clk 0:00:19]}  Kf3 {[%clk 0:00:07]} 61. Kg5 {[%clk 0:00:19]}  Ke3 {[%clk 0:00:06]} 62. Kf5 {[%clk 0:00:19]}  Kd3 {[%clk 0:00:07]} 63. Kf4+ {[%clk 0:00:19]}  Ke2 {[%clk 0:00:07]} 64. Qg2+ {[%clk 0:00:18]}  Kd3 {[%clk 0:00:07]} 65. Qe4+ {[%clk 0:00:18]}  Kd2 {[%clk 0:00:07]} 66. Qe3+ {[%clk 0:00:18]}  Kc2 {[%clk 0:00:07]} 67. Ke4 {[%clk 0:00:17]}  Kb1 {[%clk 0:00:06]} 68. Qf2 {[%clk 0:00:15]}  Kc1 {[%clk 0:00:06]} 69. Kd3 {[%clk 0:00:14]}  Kd1 {[%clk 0:00:06]} 70. Qd2# {[%clk 0:00:13]} 1-0


[Site "https://www.chess.com"]

[Event "Titled Tuesday Blitz July 13 2021"]
[White "Rozhkov, Viacheslav"]
[Black "Toniutti, Ezio"]
[WhiteFideId "4181484"]
[BlackFideId "113034"]
[WhiteElo "2324"]
[BlackElo "2215"]
[Result "1-0"]
[Round "06"]
[TimeControl "180+1"]
[Date "2021.07.13"]
[WhiteClock "0:00:08"]
[BlackClock "0:00:10"]

1. e4 {[%clk 0:03:00]}  e5 {[%clk 0:01:49]} 2. Nf3 {[%clk 0:03:00]}  Nc6 {[%clk 0:01:49]} 3. d4 {[%clk 0:03:00]}  exd4 {[%clk 0:01:49]} 4. Bc4 {[%clk 0:03:01]}  Nf6 {[%clk 0:01:48]} 5. e5 {[%clk 0:03:01]}  d5 {[%clk 0:01:48]} 6. Bb5 {[%clk 0:03:01]}  Ne4 {[%clk 0:01:48]} 7. Nxd4 {[%clk 0:03:02]}  Bc5 {[%clk 0:01:47]} 8. Be3 {[%clk 0:03:00]}  O-O {[%clk 0:01:47]} 9. Nxc6 {[%clk 0:02:56]}  bxc6 {[%clk 0:01:46]} 10. Bxc5 {[%clk 0:02:55]}  Nxc5 {[%clk 0:01:45]} 11. Bxc6 {[%clk 0:02:55]}  Rb8 {[%clk 0:01:45]} 12. Qxd5 {[%clk 0:02:53]}  Qe7 {[%clk 0:01:45]} 13. O-O {[%clk 0:02:50]}  Rxb2 {[%clk 0:01:43]} 14. Na3 {[%clk 0:02:50]}  Rd8 {[%clk 0:01:27]} 15. Qf3 {[%clk 0:02:45]}  Ne6 {[%clk 0:01:23]} 16. Qc3 {[%clk 0:02:24]}  Rb6 {[%clk 0:01:22]} 17. Rad1 {[%clk 0:02:21]}  Ba6 {[%clk 0:01:19]} 18. Rfe1 {[%clk 0:02:06]}  Rxc6 {[%clk 0:01:10]} 19. Qxc6 {[%clk 0:02:05]}  Rxd1 {[%clk 0:01:07]} 20. Rxd1 {[%clk 0:02:04]}  Qxa3 {[%clk 0:01:07]} 21. h3 {[%clk 0:01:33]}  g6 {[%clk 0:00:55]} 22. Qa8+ {[%clk 0:01:02]}  Kg7 {[%clk 0:00:52]} 23. Qxa7 {[%clk 0:00:58]}  Qxa2 {[%clk 0:00:51]} 24. Rd7 {[%clk 0:00:57]}  Qa1+ {[%clk 0:00:44]} 25. Kh2 {[%clk 0:00:57]}  Qxe5+ {[%clk 0:00:44]} 26. g3 {[%clk 0:00:56]}  Bb5 {[%clk 0:00:40]} 27. Rd2 {[%clk 0:00:43]}  Bc6 {[%clk 0:00:38]} 28. Qe3 {[%clk 0:00:39]}  Qf5 {[%clk 0:00:34]} 29. Qc3+ {[%clk 0:00:38]}  Qf6 {[%clk 0:00:30]} 30. Qxc6 {[%clk 0:00:38]}  h5 {[%clk 0:00:30]} 31. Qe4 {[%clk 0:00:37]}  Ng5 {[%clk 0:00:29]} 32. Qe3 {[%clk 0:00:29]}  h4 {[%clk 0:00:28]} 33. gxh4 {[%clk 0:00:24]}  Nf3+ {[%clk 0:00:28]} 34. Kg2 {[%clk 0:00:21]}  Nxh4+ {[%clk 0:00:28]} 35. Kh1 {[%clk 0:00:21]}  Nf3 {[%clk 0:00:27]} 36. Rd1 {[%clk 0:00:19]}  Qf5 {[%clk 0:00:26]} 37. Kg2 {[%clk 0:00:18]}  Nh4+ {[%clk 0:00:26]} 38. Kf1 {[%clk 0:00:18]}  Nf3 {[%clk 0:00:26]} 39. Kg2 {[%clk 0:00:15]}  Ne5 {[%clk 0:00:21]} 40. Qd4 {[%clk 0:00:13]}  f6 {[%clk 0:00:21]} 41. Qe3 {[%clk 0:00:12]}  c5 {[%clk 0:00:19]} 42. Rd6 {[%clk 0:00:11]}  c4 {[%clk 0:00:18]} 43. Rb6 {[%clk 0:00:11]}  g5 {[%clk 0:00:17]} 44. Rb7+ {[%clk 0:00:11]}  Kg6 {[%clk 0:00:17]} 45. Rb8 {[%clk 0:00:10]}  Kg7 {[%clk 0:00:15]} 46. Rb7+ {[%clk 0:00:10]}  Kg6 {[%clk 0:00:16]} 47. Rc7 {[%clk 0:00:11]}  g4 {[%clk 0:00:15]} 48. hxg4 {[%clk 0:00:10]}  Nxg4 {[%clk 0:00:15]} 49. Qf3 {[%clk 0:00:08]}  Qg5 {[%clk 0:00:13]} 50. Qe4+ {[%clk 0:00:08]}  f5 {[%clk 0:00:12]} 51. Qe8+ {[%clk 0:00:08]}  Kh6 {[%clk 0:00:11]} 52. Qh8+ {[%clk 0:00:08]}  Kg6 {[%clk 0:00:10]} 53. Rg7+ {[%clk 0:00:08]} 1-0


[Site "https://www.chess.com"]

[Event "Titled Tuesday Blitz July 13 2021"]
[White "Samsonkin, Artiom"]
[Black "Shevelev, Dmitri"]
[WhiteFideId "13503111"]
[BlackFideId "2802627"]
[WhiteElo "2513"]
[BlackElo "2262"]
[Result "1-0"]
[Round "06"]
[TimeControl "180+1"]
[Date "2021.07.13"]
[WhiteClock "0:00:24"]
[BlackClock "0:00:05"]

1. e4 {[%clk 0:03:00]}  c6 {[%clk 0:02:56]} 2. d4 {[%clk 0:02:59]}  d5 {[%clk 0:02:57]} 3. e5 {[%clk 0:02:59]}  Bf5 {[%clk 0:02:54]} 4. h4 {[%clk 0:02:58]}  Qb6 {[%clk 0:02:52]} 5. g4 {[%clk 0:02:57]}  Bd7 {[%clk 0:02:52]} 6. Nc3 {[%clk 0:02:57]}  e6 {[%clk 0:02:34]} 7. Na4 {[%clk 0:02:56]}  Qc7 {[%clk 0:02:30]} 8. Nf3 {[%clk 0:02:55]}  b5 {[%clk 0:02:26]} 9. Nc5 {[%clk 0:02:31]}  Bxc5 {[%clk 0:02:12]} 10. dxc5 {[%clk 0:02:32]}  f6 {[%clk 0:02:05]} 11. Bf4 {[%clk 0:02:27]}  Qa5+ {[%clk 0:01:49]} 12. c3 {[%clk 0:01:59]}  b4 {[%clk 0:01:46]} 13. Qd4 {[%clk 0:01:59]}  bxc3 {[%clk 0:01:34]} 14. b4 {[%clk 0:01:49]}  Qa3 {[%clk 0:01:20]} 15. Bc1 {[%clk 0:01:39]}  Qa4 {[%clk 0:01:07]} 16. Qxc3 {[%clk 0:01:30]}  a5 {[%clk 0:01:05]} 17. Rb1 {[%clk 0:01:24]}  fxe5 {[%clk 0:00:19]} 18. Nxe5 {[%clk 0:01:21]}  Nf6 {[%clk 0:00:19]} 19. Bd3 {[%clk 0:01:21]}  O-O {[%clk 0:00:18]} 20. O-O {[%clk 0:01:16]}  axb4 {[%clk 0:00:19]} 21. Rxb4 {[%clk 0:01:16]}  Qxa2 {[%clk 0:00:19]} 22. Bb2 {[%clk 0:00:55]}  d4 {[%clk 0:00:09]} 23. Rxd4 {[%clk 0:00:43]}  Nd5 {[%clk 0:00:09]} 24. Rxd5 {[%clk 0:00:32]}  exd5 {[%clk 0:00:06]} 25. Nxd7 {[%clk 0:00:25]}  Nxd7 {[%clk 0:00:05]} 26. Qxg7# {[%clk 0:00:24]} 1-0


[Site "https://www.chess.com"]

[Event "Titled Tuesday Blitz July 13 2021"]
[White "Senthil Maran K"]
[Black "Cornette, Matthieu"]
[WhiteFideId "25035681"]
[BlackFideId "620084"]
[WhiteElo "2194"]
[BlackElo "2500"]
[Result "1-0"]
[Round "06"]
[TimeControl "180+1"]
[Date "2021.07.13"]
[WhiteClock "0:00:57"]
[BlackClock "0:00:27"]

1. d4 {[%clk 0:03:00]}  Nf6 {[%clk 0:02:55]} 2. c4 {[%clk 0:02:59]}  b6 {[%clk 0:02:56]} 3. Nf3 {[%clk 0:02:56]}  Bb7 {[%clk 0:02:56]} 4. g3 {[%clk 0:02:56]}  g6 {[%clk 0:02:53]} 5. Bg2 {[%clk 0:02:56]}  Bg7 {[%clk 0:02:53]} 6. O-O {[%clk 0:02:57]}  O-O {[%clk 0:02:53]} 7. d5 {[%clk 0:02:57]}  Na6 {[%clk 0:02:51]} 8. Nc3 {[%clk 0:02:57]}  Nc5 {[%clk 0:02:51]} 9. Qc2 {[%clk 0:02:54]}  a5 {[%clk 0:02:45]} 10. e4 {[%clk 0:02:53]}  e6 {[%clk 0:02:43]} 11. e5 {[%clk 0:02:47]}  Ne8 {[%clk 0:02:40]} 12. Re1 {[%clk 0:02:41]}  f6 {[%clk 0:02:33]} 13. Be3 {[%clk 0:02:34]}  fxe5 {[%clk 0:02:31]} 14. Bxc5 {[%clk 0:02:33]}  bxc5 {[%clk 0:02:32]} 15. Nxe5 {[%clk 0:02:32]}  d6 {[%clk 0:02:21]} 16. dxe6 {[%clk 0:01:38]}  Bxe5 {[%clk 0:01:33]} 17. Bxb7 {[%clk 0:01:35]}  Rb8 {[%clk 0:01:33]} 18. Be4 {[%clk 0:01:16]}  Nf6 {[%clk 0:01:25]} 19. Nd5 {[%clk 0:01:13]}  Nxe4 {[%clk 0:01:10]} 20. e7 {[%clk 0:01:08]}  Nxf2 {[%clk 0:00:27]} 21. exd8=Q {[%clk 0:01:01]}  Rbxd8 {[%clk 0:00:26]} 22. Qxf2 {[%clk 0:00:57]}  Rxf2 {[%clk 0:00:25]} 23. Kxf2 {[%clk 0:00:58]}  Bxb2 {[%clk 0:00:25]} 24. Rab1 {[%clk 0:00:57]}  Bd4+ {[%clk 0:00:26]} 25. Kg2 {[%clk 0:00:57]}  Rf8 {[%clk 0:00:27]} 1-0


[Site "https://www.chess.com"]

[Event "Titled Tuesday Blitz July 13 2021"]
[White "Seul, Georg"]
[Black "Shkapenko, Pavel"]
[WhiteFideId "4601653"]
[BlackFideId "4151933"]
[WhiteElo "2332"]
[BlackElo "2386"]
[Result "1/2-1/2"]
[Round "06"]
[TimeControl "180+1"]
[Date "2021.07.13"]
[WhiteClock "0:00:25"]
[BlackClock "0:00:19"]

1. e4 {[%clk 0:03:00]}  e5 {[%clk 0:02:59]} 2. Nc3 {[%clk 0:03:00]}  Nf6 {[%clk 0:02:58]} 3. f4 {[%clk 0:02:59]}  d5 {[%clk 0:02:59]} 4. fxe5 {[%clk 0:02:59]}  Nxe4 {[%clk 0:02:59]} 5. Qf3 {[%clk 0:02:59]}  Nc6 {[%clk 0:02:59]} 6. Bb5 {[%clk 0:02:58]}  Nxc3 {[%clk 0:02:58]} 7. dxc3 {[%clk 0:02:58]}  Qh4+ {[%clk 0:02:58]} 8. g3 {[%clk 0:02:58]}  Qe4+ {[%clk 0:02:59]} 9. Qxe4 {[%clk 0:02:58]}  dxe4 {[%clk 0:03:00]} 10. Bxc6+ {[%clk 0:02:59]}  bxc6 {[%clk 0:03:00]} 11. Be3 {[%clk 0:02:59]}  h5 {[%clk 0:02:59]} 12. h3 {[%clk 0:02:59]}  a5 {[%clk 0:02:33]} 13. a4 {[%clk 0:02:48]}  Be6 {[%clk 0:02:06]} 14. Ne2 {[%clk 0:02:47]}  Rd8 {[%clk 0:01:58]} 15. Nd4 {[%clk 0:02:42]}  Bd7 {[%clk 0:01:50]} 16. Nb3 {[%clk 0:02:37]}  Ra8 {[%clk 0:01:50]} 17. Bc5 {[%clk 0:02:32]}  Bf5 {[%clk 0:01:17]} 18. Bxf8 {[%clk 0:02:29]}  Kxf8 {[%clk 0:01:13]} 19. O-O-O {[%clk 0:02:26]}  Ke7 {[%clk 0:01:10]} 20. Nc5 {[%clk 0:02:23]}  Rhd8 {[%clk 0:01:01]} 21. c4 {[%clk 0:01:52]}  Rxd1+ {[%clk 0:00:45]} 22. Kxd1 {[%clk 0:01:51]}  e3 {[%clk 0:00:45]} 23. Ke2 {[%clk 0:01:12]}  Bxc2 {[%clk 0:00:43]} 24. Kxe3 {[%clk 0:01:11]}  Rd8 {[%clk 0:00:42]} 25. Rc1 {[%clk 0:01:04]}  Bf5 {[%clk 0:00:42]} 26. h4 {[%clk 0:01:04]}  f6 {[%clk 0:00:32]} 27. exf6+ {[%clk 0:01:03]}  Kxf6 {[%clk 0:00:33]} 28. b3 {[%clk 0:00:50]}  g5 {[%clk 0:00:33]} 29. Rf1 {[%clk 0:00:42]}  gxh4 {[%clk 0:00:31]} 30. gxh4 {[%clk 0:00:41]}  Ke5 {[%clk 0:00:31]} 31. Re1 {[%clk 0:00:37]}  Bg4 {[%clk 0:00:27]} 32. Nb7 {[%clk 0:00:35]}  Rf8 {[%clk 0:00:26]} 33. Nxa5 {[%clk 0:00:32]}  Rf3+ {[%clk 0:00:25]} 34. Kd2+ {[%clk 0:00:32]}  Kd6 {[%clk 0:00:24]} 35. Re4 {[%clk 0:00:29]}  c5 {[%clk 0:00:23]} 36. Nb7+ {[%clk 0:00:26]}  Kc6 {[%clk 0:00:23]} 37. Nd8+ {[%clk 0:00:26]}  Kd7 {[%clk 0:00:22]} 38. Nb7 {[%clk 0:00:26]}  Kc6 {[%clk 0:00:21]} 39. Nd8+ {[%clk 0:00:26]}  Kd7 {[%clk 0:00:20]} 40. Nb7 {[%clk 0:00:25]}  Kc6 {[%clk 0:00:19]} 1/2-1/2


[Site "https://www.chess.com"]

[Event "Titled Tuesday Blitz July 13 2021"]
[White "Siniauski, Artsiom"]
[Black "Estrada Nieto, Julian"]
[WhiteFideId "13512269"]
[BlackFideId "5101018"]
[WhiteElo "2210"]
[BlackElo "2270"]
[Result "1-0"]
[Round "06"]
[TimeControl "180+1"]
[Date "2021.07.13"]
[WhiteClock "0:00:06"]
[BlackClock "0:00:01"]

1. e4 {[%clk 0:02:59]}  e5 {[%clk 0:02:59]} 2. Nf3 {[%clk 0:02:58]}  Nc6 {[%clk 0:02:59]} 3. Bb5 {[%clk 0:02:58]}  a6 {[%clk 0:02:58]} 4. Ba4 {[%clk 0:02:58]}  Nf6 {[%clk 0:02:58]} 5. O-O {[%clk 0:02:58]}  Be7 {[%clk 0:02:58]} 6. Re1 {[%clk 0:02:57]}  b5 {[%clk 0:02:57]} 7. Bb3 {[%clk 0:02:57]}  O-O {[%clk 0:02:58]} 8. h3 {[%clk 0:02:55]}  d6 {[%clk 0:02:57]} 9. c3 {[%clk 0:02:55]}  Na5 {[%clk 0:02:56]} 10. Bc2 {[%clk 0:02:54]}  c5 {[%clk 0:02:56]} 11. d4 {[%clk 0:02:55]}  Qc7 {[%clk 0:02:56]} 12. Nbd2 {[%clk 0:02:54]}  cxd4 {[%clk 0:02:56]} 13. cxd4 {[%clk 0:02:54]}  Bd7 {[%clk 0:02:56]} 14. Nf1 {[%clk 0:02:44]}  Rac8 {[%clk 0:02:55]} 15. Bd3 {[%clk 0:02:44]}  Nc6 {[%clk 0:02:54]} 16. a3 {[%clk 0:02:38]}  Nxd4 {[%clk 0:02:36]} 17. Nxd4 {[%clk 0:02:38]}  exd4 {[%clk 0:02:36]} 18. Bg5 {[%clk 0:02:38]}  h6 {[%clk 0:02:27]} 19. Bh4 {[%clk 0:02:37]}  Rfe8 {[%clk 0:02:15]} 20. Rc1 {[%clk 0:02:25]}  Qb6 {[%clk 0:02:13]} 21. Nd2 {[%clk 0:02:16]}  Rxc1 {[%clk 0:01:49]} 22. Qxc1 {[%clk 0:02:16]}  Be6 {[%clk 0:01:31]} 23. b4 {[%clk 0:02:11]}  Rc8 {[%clk 0:01:28]} 24. Qb2 {[%clk 0:02:10]}  Rc3 {[%clk 0:01:27]} 25. Bb1 {[%clk 0:01:59]}  Qc7 {[%clk 0:01:07]} 26. Rd1 {[%clk 0:01:43]}  Nh5 {[%clk 0:01:02]} 27. Bxe7 {[%clk 0:01:40]}  Qxe7 {[%clk 0:01:02]} 28. Nf1 {[%clk 0:01:20]}  Qf6 {[%clk 0:00:47]} 29. Qd2 {[%clk 0:01:13]}  Nf4 {[%clk 0:00:45]} 30. Kh2 {[%clk 0:01:06]}  Rxa3 {[%clk 0:00:32]} 31. Qxd4 {[%clk 0:00:55]}  Qxd4 {[%clk 0:00:31]} 32. Rxd4 {[%clk 0:00:55]}  Ra1 {[%clk 0:00:23]} 33. Nd2 {[%clk 0:00:54]}  Ne2 {[%clk 0:00:16]} 34. Rxd6 {[%clk 0:00:53]}  Nc3 {[%clk 0:00:16]} 35. Bd3 {[%clk 0:00:41]}  Kf8 {[%clk 0:00:16]} 36. e5 {[%clk 0:00:40]}  Ke7 {[%clk 0:00:15]} 37. Ne4 {[%clk 0:00:38]}  Nxe4 {[%clk 0:00:13]} 38. Bxe4 {[%clk 0:00:38]}  Ra2 {[%clk 0:00:14]} 39. Kg3 {[%clk 0:00:37]}  Ra3+ {[%clk 0:00:11]} 40. f3 {[%clk 0:00:37]}  g5 {[%clk 0:00:10]} 41. Bb7 {[%clk 0:00:37]}  Rb3 {[%clk 0:00:09]} 42. Rxa6 {[%clk 0:00:37]}  Rxb4 {[%clk 0:00:09]} 43. Bc6 {[%clk 0:00:37]}  Rb2 {[%clk 0:00:07]} 44. Ra7+ {[%clk 0:00:37]}  Kf8 {[%clk 0:00:07]} 45. h4 {[%clk 0:00:25]}  b4 {[%clk 0:00:06]} 46. hxg5 {[%clk 0:00:23]}  hxg5 {[%clk 0:00:07]} 47. f4 {[%clk 0:00:20]}  gxf4+ {[%clk 0:00:06]} 48. Kxf4 {[%clk 0:00:21]}  Kg7 {[%clk 0:00:06]} 49. Rb7 {[%clk 0:00:21]}  Rf2+ {[%clk 0:00:06]} 50. Ke3 {[%clk 0:00:21]}  Rb2 {[%clk 0:00:07]} 51. Kd3 {[%clk 0:00:20]}  b3 {[%clk 0:00:07]} 52. Bf3 {[%clk 0:00:18]}  Rb1 {[%clk 0:00:07]} 53. Kc3 {[%clk 0:00:18]}  Re1 {[%clk 0:00:06]} 54. Rb5 {[%clk 0:00:16]}  Re3+ {[%clk 0:00:06]} 55. Kd2 {[%clk 0:00:16]}  Rxf3 {[%clk 0:00:03]} 56. gxf3 {[%clk 0:00:16]}  Kg6 {[%clk 0:00:04]} 57. Ke3 {[%clk 0:00:14]}  Kf5 {[%clk 0:00:05]} 58. f4 {[%clk 0:00:14]}  Kg4 {[%clk 0:00:04]} 59. Ke4 {[%clk 0:00:12]}  Kg3 {[%clk 0:00:03]} 60. f5 {[%clk 0:00:10]}  Bc4 {[%clk 0:00:03]} 61. Rb4 {[%clk 0:00:09]}  b2 {[%clk 0:00:01]} 62. Rxb2 {[%clk 0:00:08]}  Kg4 {[%clk 0:00:01]} 63. Rc2 {[%clk 0:00:06]} 1-0


[Site "https://www.chess.com"]